[Event "Czech Youth U16 Girls 2024"]
[Site "Kouty nad Desnou"]
[Date "2024.03.16"]
[Round "9.6"]
[White "Kaplanova, Dominika"]
[Black "Hetfleischova, Elen"]
[Result "1-0"]
[ECO "E06"]
[WhiteElo "1837"]
[BlackElo "1699"]
[Annotator "NA RC"]
[PlyCount "87"]
[EventDate "2024.03.10"]
[EventType "swiss"]
[EventCountry "CZE"]
[SourceTitle "playchess.com"]
[Source "ChessBase"]
[SourceQuality "1"]
[TimeControl "40/5400+30:1800+30"]

1. d4 {[%emt 0:00:20]} Nf6 {[%emt 0:00:07]} 2. c4 {[%emt 0:00:21]} e6 {[%emt 0:01:41]} 3. g3 {[%emt 0:00:53]} d5 {[%emt 0:01:30]} 4. Nf3 {[%emt 0:00:29]} Be7 {[%emt 0:03:27]} 5. Bg2 {[%emt 0:01:03]} O-O {[%emt 0:00:39]} 6. O-O {[%emt 0:01:53]} c6 {[%emt 0:02:20]} 7. c5 {[%emt 0:02:48]} b6 {[%emt 0:01:38]} 8. b4 {[%emt 0:01:34]} a5 {[%emt 0:01:15]} 9. Ba3 {[%emt 0:09:11]} axb4 {[%emt 0:02:01]} 10. Bxb4 {[%emt 0:00:07]} bxc5 {[%emt 0:00:49]} 11. Bxc5 {[%emt 0:00:42]} Bxc5 {[%emt 0:00:34]} 12. dxc5 {[%emt 0:00:11]} Nbd7 {[%emt 0:00:38]} 13. Qc2 {[%emt 0:02:04]} Ra5 14. Nd4 {[%emt 0:06:16]} Rxc5 {[%emt 0:07:36]} 15. Qb2 {[%emt 0:03:48]} e5 {[%emt 0:06:41]} 16. Nf3 {[%emt 0:07:33]} Rb5 {[%emt 0:03:43]} 17. Qc3 {[%emt 0:01:02]} Qb6 {[%emt 0:08:45]} 18. Nxe5 {[%emt 0:16:12]} Nxe5 {[%emt 0:04:06]} 19. Qxe5 {[%emt 0:02:52]} Re8 {[%emt 0:00:05]} 20. Qd6 {[%emt 0:02:32]} Re6 {[%emt 0:08:16]} 21. Qf4 {[%emt 0:04:08]} Rb4 {[%emt 0:03:10]} 22. Qf3 {[%emt 0:02:07]} Ba6 {[%emt 0:01:15]} 23. Re1 {[%emt 0:09:59]} Bxe2 {[%emt 0:21:29]} 24. Rxe2 {[%emt 0:00:57]} Rxb1+ {[%emt 0:01:24]} 25. Rxb1 {[%emt 0:00:09]} Qxb1+ {[%emt 0:00:07]} 26. Bf1 {[%emt 0:00:03]} Rxe2 {[%emt 0:00:43]} 27. Qxe2 {[%emt 0:00:08]} Qe4 {[%emt 0:00:53]} 28. Qa6 {[%emt 0:15:31]} Qe6 {[%emt 0:03:10]} 29. Bh3 {[%emt 0:03:13]} Qe1+ {[%emt 0:01:07]} 30. Bf1 {[%emt 0:00:02]} Qe8 {[%emt 0:01:56]} 31. a4 {[%emt 0:02:16]} Kf8 {[%emt 0:01:16]} 32. Qb6 {[%emt 0:01:50]} Qa8 {[%emt 0:04:16]} 33. a5 {[%emt 0:01:23]} Ke8 {[%emt 0:00:50]} 34. a6 {[%emt 0:00:20]} Nd7 {[%emt 0:00:55]} 35. Qc7 {[%emt 0:00:40]} g6 {[%emt 0:03:18]} 36. a7 {[%emt 0:01:05]} h5 {[%emt 0:01:35]} 37. Ba6 {[%emt 0:00:44]} d4 {[%emt 0:02:22]} 38. Bc8 {[%emt 0:00:44]} d3 {[%emt 0:00:56]} 39. Qxd7+ {[%emt 0:00:16]} Kf8 {[%emt 0:00:10]} 40. Ba6 {[%emt 0:01:38]} d2 {[%emt 0:01:01]} 41. Be2 {[%emt 0:30:50]} c5 {[%emt 0:30:24]} 42. Qd6+ {[%emt 0:00:00]} Kg7 {[%emt 0:00:00]} 43. Qxc5 {[%emt 0:00:00]} Qe8 {[%emt 0:00:00]} 44. Qc3+ {[%emt 0:00:00]} 1-0

[Event "Czech Youth U16 Girls 2024"]
[Site "Kouty nad Desnou"]
[Date "2024.03.16"]
[Round "9.7"]
[White "Stavova, Marketa"]
[Black "Vacekova, Anita"]
[Result "0-1"]
[ECO "C77"]
[WhiteElo "1641"]
[BlackElo "1783"]
[Annotator "NA RC"]
[PlyCount "116"]
[EventDate "2024.03.10"]
[EventType "swiss"]
[EventCountry "CZE"]
[SourceTitle "playchess.com"]
[Source "ChessBase"]
[SourceQuality "1"]
[TimeControl "40/5400+30:1800+30"]

1. e4 {[%emt 0:00:09]} e5 {[%emt 0:00:12]} 2. Nf3 {[%emt 0:00:28]} Nc6 {[%emt 0:00:03]} 3. Bb5 {[%emt 0:00:29]} a6 {[%emt 0:00:12]} 4. Ba4 {[%emt 0:00:13]} Nf6 {[%emt 0:00:06]} 5. d3 {[%emt 0:00:41]} b5 {[%emt 0:02:02]} 6. Bb3 {[%emt 0:02:01]} d6 {[%emt 0:00:36]} 7. O-O {[%emt 0:00:30]} Be7 {[%emt 0:04:07]} 8. c3 {[%emt 0:03:11]} Bg4 {[%emt 0:03:38]} 9. h3 {[%emt 0:01:31]} Bh5 {[%emt 0:04:02]} 10. Re1 {[%emt 0:02:07]} h6 {[%emt 0:08:14]} 11. Nbd2 {[%emt 0:02:28]} g5 {[%emt 0:06:13]} 12. g4 {[%emt 0:08:17]} Bg6 {[%emt 0:07:03]} 13. Nh2 {[%emt 0:03:27]} h5 {[%emt 0:11:36]} 14. Kg2 {[%emt 0:02:05]} Qd7 {[%emt 0:03:43]} 15. f3 {[%emt 0:03:09]} O-O-O {[%emt 0:04:56]} 16. a4 {[%emt 0:03:06]} b4 {[%emt 0:02:35]} 17. Bc4 {[%emt 0:01:44]} Nb8 {[%emt 0:07:02]} 18. Qb3 {[%emt 0:11:24]} d5 {[%emt 0:03:59]} 19. exd5 {[%emt 0:00:12]} Nxd5 {[%emt 0:00:30]} 20. Ne4 {[%emt 0:00:41]} hxg4 {[%emt 0:02:57]} 21. hxg4 {[%emt 0:00:49]} f6 {[%emt 0:04:54]} 22. Bd2 {[%emt 0:03:47]} Qc6 {[%emt 0:03:40]} 23. cxb4 {[%emt 0:02:27]} Nf4+ {[%emt 0:03:14]} 24. Bxf4 {[%emt 0:00:24]} gxf4 {[%emt 0:00:42]} 25. b5 {[%emt 0:06:24]} axb5 {[%emt 0:01:25]} 26. Bxb5 {[%emt 0:01:14]} Qb6 {[%emt 0:01:26]} 27. a5 {[%emt 0:01:10]} Qd4 {[%emt 0:05:50]} 28. Re2 {[%emt 0:06:08]} Bxe4 {[%emt 0:01:51]} 29. dxe4 {[%emt 0:00:51]} Rh7 {[%emt 0:02:04]} 30. a6 {[%emt 0:04:22]} Bc5 {[%emt 0:01:15]} 31. Qe6+ {[%emt 0:01:37]} Nd7 {[%emt 0:00:34]} 32. Qc6 {[%emt 0:01:51]} Rdh8 {[%emt 0:02:42]} 33. Qa8+ {[%emt 0:01:31]} Nb8 {[%emt 0:00:02]} 34. Qb7+ {[%emt 0:00:19]} Kd8 {[%emt 0:00:04]} 35. Qxb8+ {[%emt 0:00:22]} Ke7 {[%emt 0:00:09]} 36. Qxc7+ {[%emt 0:00:18]} Kf8 {[%emt 0:02:11]} 37. Qc8+ {[%emt 0:02:04]} Kg7 {[%emt 0:00:23]} 38. Qxh8+ {[%emt 0:06:33]} Rxh8 {[%emt 0:00:16]} 39. Rc1 {[%emt 0:01:49]} Rb8 {[%emt 0:01:48]} 40. Ba4 {[%emt 0:09:46]} Rxb2 {[%emt 0:01:27]} 41. Bc2 {[%emt 0:31:52]} Ra2 {[%emt 0:30:40]} 42. Rce1 {[%emt 0:02:26]} Ra1 {[%emt 0:00:00]} 43. Rxa1 {[%emt 0:00:00]} Qxa1 {[%emt 0:00:00]} 44. Kh3 {[%emt 0:00:00]} Qh1 {[%emt 0:00:00]} 45. Rg2 {[%emt 0:00:00]} Bg1 {[%emt 0:00:00]} 46. Bd1 {[%emt 0:00:00]} Bxh2 {[%emt 0:00:00]} 47. Rxh2 {[%emt 0:00:00]} Qxd1 {[%emt 0:00:00]} 48. Kg2 {[%emt 0:00:00]} Qe2+ {[%emt 0:00:00]} 49. Kg1 {[%emt 0:00:00]} Qe1+ {[%emt 0:00:00]} 50. Kg2 {[%emt 0:00:00]} Qg3+ {[%emt 0:00:00]} 51. Kh1 {[%emt 0:00:00]} Qxf3+ {[%emt 0:00:00]} 52. Kg1 {[%emt 0:00:00]} Qd1+ {[%emt 0:00:00]} 53. Kf2 {[%emt 0:00:00]} Qc2+ {[%emt 0:00:00]} 54. Kg1 {[%emt 0:00:00]} Qb1+ {[%emt 0:00:00]} 55. Kg2 {[%emt 0:00:00]} Qa2+ {[%emt 0:00:00]} 56. Kg1 {[%emt 0:00:00]} Qxa6 {[%emt 0:00:00]} 57. Rf2 {[%emt 0:00:00]} Kg6 {[%emt 0:00:00]} 58. Kh2 {[%emt 0:00:00]} Kg5 {[%emt 0:00:00]} 0-1

[Event "Czech Youth U16 Girls 2024"]
[Site "Kouty nad Desnou"]
[Date "2024.03.16"]
[Round "9.8"]
[White "Mikesova, Lenka"]
[Black "Holatova, Irena"]
[Result "1-0"]
[ECO "C55"]
[WhiteElo "1665"]
[BlackElo "1608"]
[Annotator "NA RC"]
[PlyCount "115"]
[EventDate "2024.03.10"]
[EventType "swiss"]
[EventCountry "CZE"]
[SourceTitle "playchess.com"]
[Source "ChessBase"]
[SourceQuality "1"]
[TimeControl "40/5400+30:1800+30"]

1. e4 {[%emt 0:00:01]} e5 {[%emt 0:00:06]} 2. Nf3 {[%emt 0:00:11]} Nc6 {[%emt 0:00:06]} 3. Bc4 {[%emt 0:00:08]} Nf6 {[%emt 0:00:06]} 4. d3 {[%emt 0:00:07]} Be7 {[%emt 0:00:04]} 5. O-O {[%emt 0:00:41]} O-O {[%emt 0:00:22]} 6. Nc3 {[%emt 0:00:09]} d6 {[%emt 0:00:22]} 7. a4 {[%emt 0:01:01]} Be6 {[%emt 0:04:21]} 8. Be3 {[%emt 0:04:28]} Bxc4 {[%emt 0:01:54]} 9. dxc4 {[%emt 0:00:09]} Qd7 {[%emt 0:06:50]} 10. Qe2 {[%emt 0:02:22]} h6 {[%emt 0:05:26]} 11. Rfd1 {[%emt 0:01:46]} a6 {[%emt 0:02:40]} 12. c5 {[%emt 0:00:16]} Qe6 {[%emt 0:00:48]} 13. cxd6 {[%emt 0:03:32]} Bxd6 {[%emt 0:00:59]} 14. h3 {[%emt 0:01:57]} Rad8 {[%emt 0:02:10]} 15. Nh4 {[%emt 0:02:18]} Nd7 {[%emt 0:04:34]} 16. Nf5 {[%emt 0:02:16]} Ne7 {[%emt 0:01:44]} 17. Qg4 {[%emt 0:03:33]} Qg6 {[%emt 0:05:09]} 18. Qxg6 {[%emt 0:04:13]} Nxg6 {[%emt 0:04:41]} 19. Nxd6 {[%emt 0:00:17]} cxd6 {[%emt 0:00:10]} 20. Rxd6 {[%emt 0:00:06]} Nb8 {[%emt 0:02:43]} 21. Rad1 {[%emt 0:00:43]} Nc6 {[%emt 0:01:53]} 22. Rxd8 {[%emt 0:01:02]} Rxd8 {[%emt 0:00:06]} 23. Rxd8+ {[%emt 0:00:19]} Nxd8 {[%emt 0:00:05]} 24. Nd5 {[%emt 0:00:50]} Nc6 {[%emt 0:02:31]} 25. b4 {[%emt 0:02:12]} Kf8 {[%emt 0:02:22]} 26. Kf1 {[%emt 0:01:52]} Ke8 {[%emt 0:02:48]} 27. g3 {[%emt 0:01:26]} Nge7 {[%emt 0:02:28]} 28. Nxe7 {[%emt 0:00:51]} Kxe7 {[%emt 0:00:42]} 29. Ke2 {[%emt 0:01:20]} Ke6 {[%emt 0:02:05]} 30. c3 {[%emt 0:00:59]} h5 {[%emt 0:01:43]} 31. Kd3 {[%emt 0:01:30]} g6 {[%emt 0:05:53]} 32. Kc4 {[%emt 0:00:38]} Kd6 {[%emt 0:05:33]} 33. b5 {[%emt 0:02:05]} axb5+ {[%emt 0:01:06]} 34. axb5 {[%emt 0:00:12]} Nd8 {[%emt 0:00:26]} 35. Bc5+ {[%emt 0:00:46]} Kd7 {[%emt 0:01:36]} 36. h4 {[%emt 0:05:37]} Ne6 {[%emt 0:04:25]} 37. Ba7 {[%emt 0:02:35]} g5 {[%emt 0:05:46]} 38. hxg5 {[%emt 0:01:29]} Nxg5 {[%emt 0:00:07]} 39. Kd5 {[%emt 0:00:36]} f6 {[%emt 0:01:55]} 40. c4 {[%emt 0:00:41]} Kc7 {[%emt 0:03:01]} 41. c5 {[%emt 0:30:46]} Nh3 {[%emt 0:31:04]} 42. Bb6+ {[%emt 0:02:16]} Kd7 {[%emt 0:01:02]} 43. c6+ {[%emt 0:00:20]} bxc6+ {[%emt 0:00:09]} 44. bxc6+ {[%emt 0:00:10]} Ke7 {[%emt 0:00:47]} 45. Be3 {[%emt 0:04:39]} Ng1 {[%emt 0:01:25]} 46. f4 {[%emt 0:01:16]} Ne2 {[%emt 0:03:28]} 47. fxe5 {[%emt 0:01:13]} fxe5 {[%emt 0:00:18]} 48. Bg5+ {[%emt 0:01:35]} Ke8 {[%emt 0:00:45]} 49. Kd6 {[%emt 0:02:09]} Nxg3 {[%emt 0:00:56]} 50. c7 {[%emt 0:00:31]} Nxe4+ {[%emt 0:00:30]} 51. Kc6 {[%emt 0:00:13]} Nxg5 {[%emt 0:01:02]} 52. c8=Q+ {[%emt 0:00:10]} Ke7 {[%emt 0:00:38]} 53. Qf5 {[%emt 0:00:55]} Nf7 {[%emt 0:02:47]} 54. Qxh5 {[%emt 0:00:53]} Kf6 {[%emt 0:00:40]} 55. Kd5 {[%emt 0:00:50]} Kg7 {[%emt 0:02:43]} 56. Ke6 {[%emt 0:00:43]} Nd8+ {[%emt 0:00:39]} 57. Kxe5 {[%emt 0:00:24]} Nf7+ {[%emt 0:01:17]} 58. Ke4 1-0

[Event "Czech Youth U16 Girls 2024"]
[Site "Kouty nad Desnou"]
[Date "2024.03.16"]
[Round "9.9"]
[White "Zelenkova, Sofie"]
[Black "Souralova, Jana"]
[Result "1-0"]
[ECO "A06"]
[WhiteElo "1636"]
[BlackElo "1597"]
[Annotator "NA RC"]
[PlyCount "111"]
[EventDate "2024.03.10"]
[EventType "swiss"]
[EventCountry "CZE"]
[SourceTitle "playchess.com"]
[Source "ChessBase"]
[SourceQuality "1"]
[TimeControl "40/5400+30:1800+30"]

1. Nf3 {[%emt 0:00:01]} d5 {[%emt 0:00:05]} 2. g3 {[%emt 0:00:02]} Nf6 {[%emt 0:00:18]} 3. Bg2 {[%emt 0:00:08]} e6 {[%emt 0:00:45]} 4. d4 {[%emt 0:00:07]} c5 {[%emt 0:00:14]} 5. O-O {[%emt 0:00:50]} Be7 {[%emt 0:00:21]} 6. e3 {[%emt 0:00:35]} O-O {[%emt 0:01:01]} 7. c4 {[%emt 0:00:06]} Nc6 {[%emt 0:00:38]} 8. b3 {[%emt 0:00:35]} b6 {[%emt 0:03:06]} 9. Bb2 {[%emt 0:02:13]} Ba6 {[%emt 0:03:50]} 10. Nbd2 {[%emt 0:01:21]} Rc8 {[%emt 0:05:27]} 11. Re1 {[%emt 0:02:56]} Re8 {[%emt 0:02:45]} 12. Rc1 {[%emt 0:01:10]} Nb4 {[%emt 0:07:08]} 13. Qe2 {[%emt 0:05:06]} Qc7 {[%emt 0:07:14]} 14. a3 {[%emt 0:02:20]} Nc6 {[%emt 0:00:21]} 15. Qd1 {[%emt 0:10:09]} Red8 {[%emt 0:09:02]} 16. cxd5 {[%emt 0:04:43]} exd5 {[%emt 0:02:02]} 17. dxc5 {[%emt 0:02:52]} bxc5 {[%emt 0:00:46]} 18. Bxf6 {[%emt 0:01:25]} Bxf6 {[%emt 0:00:17]} 19. Rxc5 {[%emt 0:00:55]} Qb6 {[%emt 0:04:14]} 20. b4 {[%emt 0:03:13]} Be7 {[%emt 0:00:36]} 21. Rc1 {[%emt 0:01:07]} Bd3 {[%emt 0:04:11]} 22. Qb3 {[%emt 0:02:11]} Bf5 {[%emt 0:02:25]} 23. Red1 {[%emt 0:07:40]} Be6 {[%emt 0:01:33]} 24. Qb2 {[%emt 0:00:50]} Bf6 {[%emt 0:00:11]} 25. Qb1 {[%emt 0:00:54]} Ne7 {[%emt 0:06:35]} 26. Rxc8 {[%emt 0:00:29]} Rxc8 {[%emt 0:00:13]} 27. Rc1 {[%emt 0:00:52]} Rxc1+ {[%emt 0:05:07]} 28. Qxc1 {[%emt 0:00:04]} Nf5 {[%emt 0:00:25]} 29. Nb3 {[%emt 0:04:54]} h6 {[%emt 0:02:24]} 30. Bf1 {[%emt 0:08:31]} Kf8 {[%emt 0:09:35]} 31. Qc5+ {[%emt 0:00:26]} Be7 {[%emt 0:00:45]} 32. Qxb6 {[%emt 0:00:10]} axb6 {[%emt 0:00:06]} 33. Nbd4 {[%emt 0:01:05]} Bd7 {[%emt 0:02:57]} 34. Nxf5 {[%emt 0:01:01]} Bxf5 {[%emt 0:00:07]} 35. Nd4 {[%emt 0:00:16]} Bd7 {[%emt 0:00:26]} 36. Bg2 {[%emt 0:01:27]} Be6 {[%emt 0:00:40]} 37. Nb5 {[%emt 0:03:19]} Bf6 {[%emt 0:01:38]} 38. Nc7 {[%emt 0:00:46]} d4 {[%emt 0:01:04]} 39. exd4 {[%emt 0:00:44]} Bxd4 {[%emt 0:00:08]} 40. Nxe6+ {[%emt 0:04:11]} fxe6 {[%emt 0:00:16]} 41. Kf1 {[%emt 0:30:14]} Ke7 {[%emt 0:30:14]} 42. Ke2 {[%emt 0:00:34]} e5 {[%emt 0:01:03]} 43. Be4 {[%emt 0:01:09]} Kd6 {[%emt 0:04:31]} 44. f3 {[%emt 0:01:00]} Bb2 {[%emt 0:02:01]} 45. a4 {[%emt 0:00:29]} Bc3 {[%emt 0:00:11]} 46. b5 {[%emt 0:00:22]} Kc5 {[%emt 0:00:22]} 47. Kd3 {[%emt 0:01:15]} Kb4 {[%emt 0:01:22]} 48. Bc6 {[%emt 0:01:04]} Bd4 {[%emt 0:03:45]} 49. Ke4 {[%emt 0:01:01]} g6 {[%emt 0:01:21]} 50. f4 {[%emt 0:01:12]} Kc5 {[%emt 0:02:13]} 51. fxe5 {[%emt 0:00:28]} Bg1 {[%emt 0:00:22]} 52. h3 {[%emt 0:00:40]} Bh2 {[%emt 0:01:18]} 53. g4 {[%emt 0:00:21]} g5 {[%emt 0:01:11]} 54. Kf5 {[%emt 0:00:52]} Bf4 {[%emt 0:00:00]} 55. Kf6 {[%emt 0:00:00]} Be3 {[%emt 0:00:00]} 56. Kf7 {[%emt 0:00:00]} 1-0

[Event "Czech Youth U16 Girls 2024"]
[Site "Kouty nad Desnou"]
[Date "2024.03.16"]
[Round "9.11"]
[White "Janouskova, Adela"]
[Black "Urvalkova, Ema"]
[Result "1-0"]
[ECO "B12"]
[WhiteElo "1684"]
[BlackElo "1496"]
[Annotator "NA RC"]
[PlyCount "65"]
[EventDate "2024.03.10"]
[EventType "swiss"]
[EventCountry "CZE"]
[SourceTitle "playchess.com"]
[Source "ChessBase"]
[SourceQuality "1"]
[TimeControl "40/5400+30:1800+30"]

1. e4 {[%emt 0:00:12]} c6 {[%emt 0:00:10]} 2. d4 {[%emt 0:00:52]} d5 {[%emt 0:00:07]} 3. e5 {[%emt 0:00:37]} Bf5 {[%emt 0:00:23]} 4. h4 {[%emt 0:01:16]} h5 {[%emt 0:00:10]} 5. Bd3 {[%emt 0:02:13]} Bxd3 {[%emt 0:01:56]} 6. Qxd3 {[%emt 0:00:14]} e6 {[%emt 0:00:22]} 7. Bg5 {[%emt 0:02:49]} Be7 {[%emt 0:00:21]} 8. Nf3 {[%emt 0:01:32]} Nd7 {[%emt 0:01:35]} 9. Nbd2 {[%emt 0:05:25]} Nb6 {[%emt 0:02:00]} 10. O-O {[%emt 0:04:54]} Qc7 {[%emt 0:01:19]} 11. c4 {[%emt 0:07:47]} dxc4 {[%emt 0:00:52]} 12. Nxc4 {[%emt 0:00:14]} Nd5 {[%emt 0:00:38]} 13. Bxe7 {[%emt 0:00:40]} Ngxe7 {[%emt 0:03:01]} 14. Nd6+ {[%emt 0:00:39]} Kf8 {[%emt 0:00:42]} 15. Ng5 {[%emt 0:01:28]} Nf4 {[%emt 0:02:08]} 16. Qf3 {[%emt 0:02:14]} Ned5 {[%emt 0:01:46]} 17. g3 {[%emt 0:10:10]} Ng6 {[%emt 0:04:06]} 18. Nxe6+ {[%emt 0:01:14]} Kg8 {[%emt 0:01:28]} 19. Nxc7 {[%emt 0:00:20]} Nxc7 {[%emt 0:00:55]} 20. Qxf7+ {[%emt 0:00:32]} Kh7 {[%emt 0:00:32]} 21. Qxc7 {[%emt 0:00:28]} Rab8 {[%emt 0:01:47]} 22. Nf5 {[%emt 0:00:12]} Rhg8 {[%emt 0:00:46]} 23. Ne7 {[%emt 0:01:12]} Nxe7 {[%emt 0:00:44]} 24. Qxe7 {[%emt 0:00:07]} Rge8 {[%emt 0:00:45]} 25. Qg5 {[%emt 0:00:10]} g6 {[%emt 0:01:18]} 26. f4 {[%emt 0:01:32]} Rg8 {[%emt 0:01:05]} 27. f5 {[%emt 0:00:11]} Rg7 {[%emt 0:01:08]} 28. fxg6+ {[%emt 0:00:28]} Kg8 {[%emt 0:01:16]} 29. Rf7 {[%emt 0:00:15]} Re8 {[%emt 0:01:30]} 30. Rxg7+ {[%emt 0:00:09]} Kxg7 {[%emt 0:00:27]} 31. Rf1 {[%emt 0:00:09]} Kg8 {[%emt 0:02:26]} 32. Qh6 {[%emt 0:00:19]} c5 {[%emt 0:01:03]} 33. Qh7# {[%emt 0:01:20]} 1-0